Cogmind - Beta 15 @@@ ROGUE MODE // 2025.05.13 @ 14:37:11 Player: Zyalin Result: Destroyed by FC-EYY(R) with Subdweller Beam Cannon Performance ------------- Evolutions (0) 0 Regions Visited (2) 400 Robots Destroyed (25) 125 Value Destroyed (589) 589 Prototype IDs (0) 0 Alien Tech Used (0) 0 Bonus (0) 0 TOTAL SCORE: 1114 Bonus ------- None Cogmind --------- Core Integrity 0/250 Matter 80/300 Energy 195/200 System Corruption 0% Temperature Cool (9) Movement Core (250) Ox4 Location -10/Subcaves Parts ------- > --- POWER (1) -------- Subdweller Power Source > --- PROPULSION (2) --- (None) > --- UTILITY (2) ------ Disposable Heat Sink Small Storage Unit > --- WEAPON (2) ------- Medium Laser Medium Laser > --- INVENTORY (8) ---- Subdweller Monowheel Subdweller Machine Gun Grenade Launcher Grenade Launcher Multitool Peak State ------------ > --- POWER ------------ Subdweller Power Source > --- PROPULSION ------- Wheel Subdweller Monowheel > --- UTILITY ---------- Disposable Heat Sink Small Storage Unit > --- WEAPON ----------- Subdweller Beam Cannon Subdweller Shrapnel Launcher > --- INVENTORY -------- Subdweller Monowheel Medium Matter Pod Medium Laser Medium Laser Subdweller Machine Gun Grenade Launcher Grenade Launcher Multitool [Rating: 13] Favorites ----------- Power Ion Engine Engine Ion Engine Propulsion Light Treads Treads Light Treads Wheel Subdweller Monowheel Utility Small Storage Unit Device Seismic Detector Storage Small Storage Unit Weapon Medium Laser Energy Gun Medium Laser Energy Cannon Subdweller Beam Cannon Ballistic Gun Light Assault Rifle Ballistic Cannon Light Cannon Launcher Subdweller Shrapnel Launcher Special Weapon Mining Laser Build | -11 -10 -10 ------- Run | Yrd Mat Sub Slots Evolved . | . . . Power . | . . . Propulsion . | . . . Utility . | . . . Weapon . | . . . Parts Attached 27 | 7 7 13 Power 6 | 1 2 3 Engine 6 | 1 2 3 Core . | . . . Reactor . | . . . Propulsion 6 | 2 . 4 Treads 2 | 2 . . Leg . | . . . Wheel 4 | . . 4 Hover . | . . . Flight . | . . . Utility 5 | 2 1 2 Device 4 | 1 1 2 Storage 1 | 1 . . Processor . | . . . Hackware . | . . . Protection . | . . . Artifact . | . . . Weapon 10 | 2 4 4 Energy Gun 2 | . 2 . Energy Cannon 1 | . . 1 Ballistic Gun 4 | 2 1 1 Ballistic Cannon 1 | . 1 . Launcher 1 | . . 1 Special Weapon 1 | . . 1 Impact Weapon . | . . . Slashing Weapon . | . . . Piercing Weapon . | . . . Special Melee Weapon . | . . . Unidentified Prototypes . | . . . Parts Lost 6 | . . 6 Power . | . . . Propulsion 2 | . . 2 Utility 1 | . . 1 Weapon 3 | . . 3 Highest Loss Streak 4 | . . 4 To Critical Strikes 1 | . . 1 Average Backups 7 | 2 6 7 Power . | . 1 . Propulsion . | . 1 . Utility 1 | . 1 1 Weapon 3 | . 3 4 Tool/Special . | . . . Unused Backups 7 | . 1 6 Power 1 | . 1 . Propulsion 2 | . . 2 Utility 1 | . . 1 Weapon 2 | . . 2 Tool/Special 1 | . . 1 Average Slot Usage (%) 98 | . 100 98 Engine 14 | . 14 14 Treads 15 | . 28 11 Wheel 11 | . . 16 Device 13 | . 14 13 Storage 14 | . 14 14 Energy Gun 9 | . 3 11 Energy Cannon 6 | . . 8 Ballistic Gun 4 | . 16 . Ballistic Cannon 2 | . 7 . Launcher 2 | . . 3 Special Weapon 2 | . . 3 Peak Build Rating 13 | 9 9 13 Average Rating 9 | 5 8 10 On Entrance 5 | . 9 8 Naked Turns . | . . . Heaviest Build 27 | 11 16 27 Greatest Support 40 | 40 40 40 Greatest Overweight (x) 1 | . . 1 Average Overweight (x) . | . . . Largest Inventory Capacity 8 | 8 8 8 Average Capacity 7 | 7 8 8 Most Carried 8 | 4 8 8 Average Carried 7 | 2 7 7 Final Capacity 8 | 8 8 8 Final Carried 8 | 4 8 5 Class Distribution -------------------- 75% | Mutant 24% | Scavenger-Mutant Dominant Class ---------------- Mutant | -10/Materials Mutant | -10/Subcaves Resources | -11 -10 -10 ----------- Run | Yrd Mat Sub Matter Collected 835 | 294 301 240 Remotely . | . . . Salvage Created 699 | 121 268 310 Parts 53 | 5 28 20 Haulers Intercepted 1 | . 1 . Recyclers Shooed 1 | . 1 . Parts Field Recycled . | . . . Retrieved Matter . | . . . Parts Self-Destructed . | . . . Prevented . | . . . Kills | -11 -10 -10 ------- Run | Yrd Mat Sub Combat Hostiles Destroyed 21 | . 11 10 Guns 5 | . 4 1 Cannons 9 | . 7 2 AOE 6 | . . 6 Classes Destroyed 7 | 2 3 2 Tunneler 1 | 1 . . Hauler 1 | . 1 . Recycler 2 | 1 1 . Swarmer 9 | . 9 . Grunt 2 | . 2 . Artisan 1 | . . 1 Subdweller 10 | . . 10 Best Kill Streak 4 | 2 4 4 Combat Bots Only 4 | . 4 4 Max Kills in Single Turn 1 | 1 1 1 Gunslinging . | . . . Exploded 1 | . . 1 Melee . | . . . Uniques/NPCs Destroyed . | . . . Combat | -11 -10 -10 -------- Run | Yrd Mat Sub Hostile Shots Fired 84 | . 49 35 Missed 22 | . 11 11 Hits 62 | . 38 24 Projectile 62 | . 38 24 Critical Strikes 1 | . . 1 Damage Taken 1102 | . 339 763 Core 258 | . 38 220 Absorbed by Shields . | . . . Core Remaining (%) 100 | 100 . . Volleys Fired 86 | 14 26 46 Largest 2 | 2 2 2 Hottest 150 | 40 50 150 Shots Fired 148 | 28 52 68 Gun 89 | 28 32 29 Cannon 36 | . 20 16 Launcher 14 | . . 14 Special 9 | . . 9 Kinetic 94 | 28 52 14 Thermal 54 | . . 54 Explosive . | . . . Electromagnetic . | . . . Robot Hit Streak 13 | 9 8 13 Robot Miss Streak 3 | 3 2 2 Penetration Max . | . . . Secondary Targets . | . . . Shots Hit Robots 80 | 20 33 27 Core Hits 42 | 6 18 18 Critical Kills 1 | . . 1 Critical Parts Destroyed . | . . . Critical Strikes 2 | . . 2 Burn 1 | . . 1 Meltdown 1 | . . 1 Melee Attacks . | . . . Impact . | . . . Slashing . | . . . Piercing . | . . . Sneak Attacks . | . . . Combat Hostiles . | . . . Follow-up Attacks . | . . . Damage Inflicted 1825 | 159 431 1235 Guns 478 | 159 170 149 Cannons 418 | . 259 159 Explosions 903 | . . 903 Melee . | . . . Ramming 2 | . 2 . Kinetic 1491 | 159 429 903 Thermal 332 | . . 332 Explosive . | . . . Electromagnetic . | . . . Impact . | . . . Slashing . | . . . Piercing . | . . . Highest Corruption . | . . . Average Corruption . | . . . Corruption Purged . | . . . Corruption Blocked . | . . . Overload Shots . | . . . Overflow Damage 13 | . . 13 Projectiles . | . . . Explosions 13 | . . 13 Melee . | . . . Knockbacks 4 | . 4 . Impact . | . . . Kinetic 4 | . 4 . Secondary . | . . . Self-Inflicted Damage 173 | . . 173 Shots 5 | . . 5 Rammed 1 | . 1 . Targets Rammed 1 | . 1 . Kicked . | . . . Crushed . | . . . Highest Temperature 69 | . 2 69 Average Temperature 20 | . 2 23 Received Heat Transfer 195 | . 36 159 Siege Activations . | . . . Martial Activations . | . . . Shielding Activations . | . . . Robots Disrupted . | . . . Combat Hostiles . | . . . Robots Corrupted . | . . . Combat Hostiles . | . . . Parts Fried . | . . . Impact Corruptions . | . . . Robots Melted 1 | . . 1 Combat Hostiles 1 | . . 1 Parts Melted 2 | . . 2 Heat Transferred 790 | . . 790 Parts Sabotaged . | . . . Parts Stolen . | . . . Parts Stripped . | . . . Power Chain Reactions . | . . . Alert | -11 -10 -10 ------- Run | Yrd Mat Sub Maximum Alert Level . | . . . Low Security (%) 100 | 100 100 . Level 1 . | . . . Level 2 . | . . . Level 3 . | . . . Level 4 . | . . . Level 5 . | . . . High Security . | . . . Max Security . | . . . Peak Influence 146 | 5 146 . Initial . | . . . Average 46 | . 59 . Influence Increases 303 | 10 293 . Destroy 0b10 Robot/C 220 | . 220 . Destroy 0b10 Robot/NC 20 | 10 10 . Destroy Leader 32 | . 32 . Disable Machine 15 | . 15 . Destroy Structure 1 | . 1 . Lose Combat Pursuer 15 | . 15 . Influence Decreases 303 | 10 186 107 Entered New Map 52 | . . 52 Time Decay 251 | 10 186 55 Squads Dispatched . | . . . Investigation . | . . . Extermination . | . . . Reinforcement . | . . . Assault . | . . . Garrison . | . . . Intercept . | . . . Searches Triggered . | . . . Construction Impeded . | . . . Haulers Reinforced . | . . . Active Scanning Responses . | . . . Cargo Convoy Interrupts . | . . . Stealth | -11 -10 -10 --------- Run | Yrd Mat Sub Distress Signals 1 | . 1 . Communications Jammed . | . . . Distress Signals . | . . . Times Spotted 26 | . 15 11 Peak Tracking Total 5 | . 5 3 Tactical Retreats 1 | . 1 . Traps | -11 -10 -10 ------- Run | Yrd Mat Sub Traps Triggered . | . . . Indirectly . | . . . Trap Hack Attempts . | . . . Triggered . | . . . Disarmed . | . . . Reprogrammed . | . . . Reused . | . . . Traps Extracted . | . . . Installed . | . . . Triggered . | . . . Most Traps Carried 1 | . . 1 Machines | -11 -10 -10 ---------- Run | Yrd Mat Sub Machines Disabled 1 | . 1 . Max in Single Turn 1 | . 1 . Machines Repaired . | . . . Machines Dismantled . | . . . Machines Sabotaged . | . . . Overloaded Fab Kills . | . . . Hacking | -11 -10 -10 --------- Run | Yrd Mat Sub Machines Accessed 2 | . 1 1 Terminals 1 | . 1 . Fabricators . | . . . Repair Stations . | . . . Recycling Units . | . . . Scanalyzers . | . . . Garrison Access . | . . . Total Hacks 6 | . 2 4 Successful 5 | . 1 4 Failed 1 | . 1 . Catastrophic . | . . . Database Lockouts . | . . . Manual 1 | . . 1 Terminals 2 | . 2 . Fabricators . | . . . Repair Stations . | . . . Recycling Units . | . . . Scanalyzers . | . . . Garrison Access . | . . . Terminal Hacks 5 | . 1 4 Record 4 | . . 4 Robot Analysis 1 | . 1 . Fabricator Hacks . | . . . Repair Station Hacks . | . . . Recycling Unit Hacks . | . . . Scanalyzer . | . . . Garrison Access Hacks . | . . . Unauthorized Hacks . | . . . Terminals . | . . . Fabricators . | . . . Repair Stations . | . . . Recycling Units . | . . . Scanalyzers . | . . . Garrison Access . | . . . Data Cores Recovered . | . . . Used . | . . . Hacking Detections 1 | . 1 . Full Trace Events . | . . . Feedback Events . | . . . Feedback Blocked . | . . . Robot Schematics Acquired . | . . . Robots Built . | . . . Authchips . | . . . Time . | . . . Total Robot Build Rating . | . . . Part Schematics Acquired . | . . . Parts Built . | . . . Authchips . | . . . Time . | . . . Total Part Build Rating . | . . . Parts Repaired . | . . . Time . | . . . Parts Recycled . | . . . Recycled Matter . | . . . Retrieved Matter . | . . . Retrieved Components . | . . . Parts Scanalyzed . | . . . Part Schematics Acquired . | . . . Parts Damaged . | . . . Bothacking | -11 -10 -10 ------------ Run | Yrd Mat Sub Used RIF Installer . | . . . Robots Hacked . | . . . Non-combat . | . . . Combat . | . . . Robot Hacks Applied . | . . . Relay Couplers Released . | . . . Fabnet Peak Effective % . | . . . Robots Rewired . | . . . Allies Hacked . | . . . Hacks Repelled . | . . . Allies | -11 -10 -10 -------- Run | Yrd Mat Sub Total Allies . | . . . Largest Group . | . . . Highest-Rated Group . | . . . Highest-Rated Ally . | . . . Total Orders . | . . . Ally Attacks . | . . . Total Damage . | . . . Kills . | . . . Allies Corrupted . | . . . Allies Melted . | . . . Intel | -11 -10 -10 ------- Run | Yrd Mat Sub Active Infowar (turns) 1082 | 33 425 624 Optics 1 | . . 1 Terrain 162 | 33 118 11 Seismic 919 | . 307 612 Robot Analysis Total 1 | . 1 . Derelict Logs Recovered 2 | . . 2 Drone Launches . | . . . Drone Recoveries . | . . . Exploration | -11 -10 -10 ------------- Run | Yrd Mat Sub Turns Passed 1743 | 129 426 1188 Spaces Moved 1093 | 50 207 836 Core 1 | 1 . . Treads 489 | 49 207 233 Legs . | . . . Wheels 603 | . . 603 Hover . | . . . Flight . | . . . Fastest Speed 50 | 50 160 95 Average Speed 129 | 157 160 120 Slowest Speed 240 | 160 160 240 Overloaded Moves . | . . . Propulsion Burnouts . | . . . Robots Hopped . | . . . Potential Cave-ins . | . . . Cave-ins Triggered . | . . . Exploration Rate (%) 36 | 5 51 54 Regions Visited 2 Branch Regions 1 Pre-discovered Areas 1 | . . 1 Known Exits Taken . | . . . Unknown Exits Taken 2 | 1 1 . Scrap Searched 4 | . . 4 Spaces Dug . | . . . Terrain Destroyed 147 | . . 147 Melee . | . . . Projectile 1 | . . 1 AOE 146 | . . 146 Terrain Rammed . | . . . Walls Destroyed . | . . . Machines Disabled . | . . . Actions | -11 -10 -10 --------- Run | Yrd Mat Sub Total 1265 | 74 254 937 Wait 15 | . 2 13 Move 1091 | 49 206 836 Hop . | . . . Pick Up 15 | 4 4 7 Fast Attach 18 | 7 4 7 Attach 4 | . 1 3 Detach 3 | . 2 1 Swap 10 | . 2 8 Drop 22 | . 6 16 Fire 86 | 14 26 46 Melee . | . . . Ram . | . . . Kick . | . . . Crush 1 | . 1 . Escape Stasis . | . . . Rewire . | . . . Trap . | . . . Miscellaneous . | . . . Route ------- -11/Scrapyard -10/Materials (discovered 3 exits: [*Mat] / [*Min] / *Sub) -10/Subcaves (discovered 2 exits: [*Mat] / Rec) History --------- Turn | Location | Event 16 | -11/Scrapyard | Discovered new exit (range 15) 130 | -11/Scrapyard | Entered Materials 256 | -10/Materials | Discovered new exit (range 15) 302 | -10/Materials | Build established: Mutant 377 | -10/Materials | Discovered new exit (range 10) 540 | -10/Materials | Discovered new exit (range 11) 556 | -10/Materials | Entered Subcaves 571 | -10/Subcaves | Shifting Twisted Machinery released Sub. Monowheel 588 | -10/Subcaves | Shifting Twisted Machinery released Multitool 588 | -10/Subcaves | Learned location of Zion (-6) 665 | -10/Subcaves | A swath of the cavern ceiling suddenly collapsed 928 | -10/Subcaves | Disturbed a concealed Subdweller 1034 | -10/Subcaves | A swath of the cavern ceiling suddenly collapsed 1203 | -10/Subcaves | Ambushed by angry Subdweller bent on revenge 1397 | -10/Subcaves | Shifting Twisted Machinery released Sub. Shrapnel Launcher 1542 | -10/Subcaves | Visited Clippyterm 1545 | -10/Subcaves | Identified exit to Recycling 1545 | -10/Subcaves | Learned Research machine intel 1583 | -10/Subcaves | Build established: Scavenger-Mutant 1690 | -10/Subcaves | Discovered new exit (range 13) 1710 | -10/Subcaves | Core integrity fell below 50% 1738 | -10/Subcaves | Core integrity fell below 20% 1744 | -10/Subcaves | Destroyed by FC-EYY(R) with Subdweller Beam Cannon Last Messages --------------- It looks like you're writing a letter, sorry I don't know how to do that. 01690_ EXIT=FOUND 01709_ RF-4PS(R) destroyed. 01709_ Destroyed Sub. Power Source. 01711_ Wheel destroyed. 01711_ Destroyed Wheel. 01715_ 4O-RSV(R) destroyed. 01727_ UV-VCQ(R) destroyed. 01729_ Critical hit (Destroy). 01729_ Sub. Beam Cannon destroyed. 01729_ K8-H8D(R) destroyed. 01731_ Dropped Med. Matter Pod. 01732_ Extracted 100 matter. 01733_ Sub. Monowheel destroyed. 01734_ Sub. Shrapnel Launcher shoots sparks and powers down. 01735_ Broken Sub. Shrapnel Launcher destroyed. 01740_ Subatomizers dissect the Disposable Heat Sink. Map ----- +----------------------------------------------------+ | ?????????????????????????????????????????????????? | | ?????????????????????????????????????????????????? | | ?????????????????????????????????????????????????? | | ?????????????????????????????????????????????????? | | ?????????????????????????????????????????????????? | | ?????????????????????????????????????????????????? | | ?????????????????????????????????????????????????? | | ?????????????????????????????????????????????????? | | ?????????????????????????????????????????????????? | | ?????????????????????????????????????????????????? | | ?????????????????????????????????????????????????? | | ???????????????????????#######???????????????????? | | ??????????????????###### ##??????????????????? | | ???????????????? # ##?????????????????? | | ?????????????? ; ##????????????????? | | ?????????????? * #????????????????? | | ????????????? #????????????????? | | ?????????????? R ! #????????????????? | | ??????????????? %! #?????????????????? | | ????????????????; = & #####?????????????? | | ???????###????###? #"""##????????????? | | ??????## ##### ###;; """"#????????????? | | #????## ## " "#?????????????? | | ##??## # <"#?????????????? | | #??# ##; "##?????????????? | | #?## ## ## ## @ ##"#??????????????? | | ### ??## ### ## # #????????????????? | | ## #### ##?# ##### ""#???????????????? | | ##??# #??# #???? "##???????????????? | | #### #??# #???? "#????????????????? | | ##??# #????# ????????????????? | | ##???# #???? ???????????????? | | ### #????## ???# ??????????????? | | #?# ##?????## ??? ?????????????? | | #?## ##???????## #?? ? ?????????????? | | #??## #?????????### #?? ??#????????????? | | ##???## ##???????????? ??? ???????????????? | | #?????#####?????????????# ??????????????????? | | ?????????????????????????#### ?????????????????? | | ?????????????????????????????## ????????????????? | | ???????????????????????????????#?????????????????? | | ?????????????????????????????????????????????????? | | ?????????????????????????????????????????????????? | | ?????????????????????????????????????????????????? | | ?????????????????????????????????????????????????? | | ?????????????????????????????????????????????????? | | ?????????????????????????????????????????????????? | | ?????????????????????????????????????????????????? | | ????????????????????#######??????????????????????? | | ????????????????????#"""""#??????????????????????? | +----------------------------------------------------+ Best States ------------- Heat Dissipation 25 Coolant Potential 50 Energy Generation 15 Energy Capacity 250 Matter Stores 300 Matter Capacity 300 Sight Range 16 Terrain Scan Range 16 Terrain Scan Density 10 Evasion (%) 41 Recoil Reduction 2 Item Schematics ----------------- None Robot Schematics ------------------ None Fabricated ------------ Nothing Repaired ---------- Nothing Alien Tech Used ----------------- None Achievements -------------- None Challenges ------------ None Game ------ Seed GrenadePrecisionImmobilizer Manual? 0 Play Time 00:13:39 Cumulative 405.2 hours Start 2025.05.13 @ 14:23:11 End 2025.05.13 @ 14:37:11 Sessions 1 Manual Loads 0 Difficulty Rogue Special Mode None Game No. 277 Rogue 269 Adventurer 2 Explorer 6 Win Type - Total 39 Types 29/3/4/2/1/0/0/0/0/0 Lore% 65 Gallery% 73 Achievement% 87 Wizard Run 0 Options --------- Layout 2 ASCII 0 Keyboard 0 Movement Numpad Keybinds 0 Fullscreen 1 Font 48/Smallcaps Map View 50x44 Zoom Use 0% Tactical HUD 1 Map Filters NONE Filters NONE Steam 1 RUN: a345be9d-ddce-4308-a7eb-e83bffa8dcd3